Cogmind - Beta 11 X7 @@@ ROGUE MODE // 2021.08.24 @ 05:55:47 // AFD2020/Player2 Player: PhenomPhear Result: Destroyed by Y-54 Guardian with Gatling Laser Performance ------------- Evolutions (3) 1500 Regions Visited (14) 2800 Robots Destroyed (105) 525 Value Destroyed (3357) 3357 Prototype IDs (13) 260 Alien Tech Used (0) 0 Bonus (3327) 3327 TOTAL SCORE: 11769 Bonus ------- High Alert Combat Kills 223 Follower Combat Kills 1958 Entered Garrisons 600 Used RIF Installer 1500 Friendly Fire -954 Cogmind --------- Core Integrity 0/700 Matter 285/300 Energy 40/160 System Corruption 1% Temperature Cool (6) Movement Hovering (200) Ox2 Location -7/Storage Parts ------- > --- POWER (1) -------- Light Nuclear Core > --- PROPULSION (4) --- Aluminum Leg Aluminum Leg Airjet > --- UTILITY (5) ------ Improved Heat Sink Machine Analyzer Improved Signal Interpreter Improved Light Armor Plating Hacking Suite > --- WEAPON (3) ------- Particle Gun Heavy Laser Advanced EMP Blaster > --- INVENTORY (5) ---- Light Angular Momentum Engine Experimental Sensor Array Relay Coupler [NC] (24) Relay Coupler [Cutter] (27) Advanced EMP Blaster Peak State ------------ > --- POWER ------------ Light Ion Engine > --- PROPULSION ------- Airjet Gravmag System Gravmag System Gravmag System > --- UTILITY ---------- Small Storage Unit Machine Analyzer Experimental Sensor Array Improved Signal Interpreter Hacking Suite > --- WEAPON ----------- Heavy Assault Rifle Improved Assault Rifle Missile Launcher > --- INVENTORY -------- Airjet Improved Signal Interpreter Relay Coupler [NC] Relay Coupler [Cutter] Relay Coupler [Grunt] Relay Coupler [Sentry] Relay Coupler [Specialist] [Rating: 45] Favorites ----------- Power Cooled Ion Engine Engine Cooled Ion Engine Power Core Light Nuclear Core Propulsion Light Treads Treads Light Treads Leg VSS Leg Wheel Armored Wheel Hover Unit Airjet Flight Unit Improved VTOL Module Utility Improved Targeting Computer Device Improved Heat Sink Storage High-capacity Storage Unit Processor Improved Targeting Computer Hackware Hacking Suite Protection Improved Light Armor Plating Weapon High-powered Shotgun Energy Gun Small Laser Energy Cannon Ion Cannon Ballistic Gun High-powered Shotgun Launcher Missile Launcher Special Melee Weapon Improved Datajack Build | -11 -10 -10 -9 -9 -9 -8 -8 -8 -8 -8 -7 -7 -7 -7 ------- Run | Scr Mat Min Mat Min Exi Min Mat Gar Mat Gar Fac Gar Fac Sto Slots Evolved 6 | . . . 2 . . . 2 . . . 2 . . . Power . | . . . . . . . . . . . . . . . Propulsion 2 | . . . . . . . 1 . . . 1 . . . Utility 3 | . . . 1 . . . 1 . . . 1 . . . Weapon 1 | . . . 1 . . . . . . . . . . . Parts Attached 79 | 6 4 6 6 2 . . 15 2 6 3 13 15 . 1 Power 5 | 1 . . 1 . . . 1 . 1 . . 1 . . Engine 4 | 1 . . 1 . . . 1 . 1 . . . . . Core 1 | . . . . . . . . . . . . 1 . . Reactor . | . . . . . . . . . . . . . . . Propulsion 27 | 2 2 . . 2 . . 7 . 3 . 7 4 . . Treads 3 | . . . . 2 . . 1 . . . . . . . Leg 9 | . . . . . . . 4 . 3 . . 2 . . Wheel 5 | 2 2 . . . . . 1 . . . . . . . Hover 9 | . . . . . . . . . . . 7 2 . . Flight 1 | . . . . . . . 1 . . . . . . . Utility 15 | 1 2 . 2 . . . 2 . . . 5 3 . . Device 3 | . . . . . . . 1 . . . 1 1 . . Storage 3 | 1 1 . . . . . . . . . 1 . . . Processor 5 | . 1 . 1 . . . 1 . . . 2 . . . Hackware 2 | . . . . . . . . . . . 1 1 . . Protection 2 | . . . 1 . . . . . . . . 1 . . Artifact . | . . . . . . . . . . . . . . . Weapon 32 | 2 . 6 3 . . . 5 2 2 3 1 7 . 1 Energy Gun 6 | 1 . . . . . . . . . . . 5 . . Energy Cannon 1 | . . . . . . . . . . . . 1 . . Ballistic Gun 16 | 1 . 3 3 . . . 4 2 1 2 . . . . Ballistic Cannon . | . . . . . . . . . . . . . . . Launcher 8 | . . 3 . . . . 1 . 1 1 . 1 . 1 Special Weapon . | . . . . . . . . . . . . . . . Impact Weapon . | . . . . . . . . . . . . . . . Slashing Weapon . | . . . . . . . . . . . . . . . Piercing Weapon . | . . . . . . . . . . . . . . . Special Melee Weapon 1 | . . . . . . . . . . . 1 . . . Unidentified Prototypes 3 | . . . . . . . 3 . . . . . . . Parts Lost 23 | . . . 1 . . . 1 1 2 2 1 14 . 1 Power 3 | . . . . . . . 1 . 1 . 1 . . . Propulsion 5 | . . . . . . . . . . . . 4 . 1 Utility 3 | . . . 1 . . . . . . . . 2 . . Weapon 12 | . . . . . . . . 1 1 2 . 8 . . Highest Loss Streak 14 | . . . 1 . . . 1 1 1 2 1 14 . 1 Average Slot Usage (%) 98 | . 95 100 99 100 100 100 99 97 96 99 99 76 92 94 Engine 9 | . 14 14 11 11 11 11 9 9 6 9 7 . . . Treads 10 | . . . . 21 22 22 15 . . . . . . . Leg 5 | . . . . . . . 10 27 27 27 . 10 15 15 Wheel 5 | . 28 28 22 . . . . . . . . . . . Hover 2 | . . . . . . . . . . . 29 12 15 10 Storage 9 | . 14 14 11 11 11 11 9 9 9 9 7 . . . Processor 20 | . 10 14 12 22 22 22 26 27 27 27 21 15 15 15 Protection 1 | . . . 9 . . . . . . . . 4 7 7 Energy Gun 2 | . 14 14 . . . . . . . . . 10 15 15 Ballistic Gun 24 | . 14 13 32 33 33 33 26 24 22 24 15 1 . . Naked Turns . | . . . . . . . . . . . . . . . Heaviest Build 60 | 11 46 47 60 57 57 57 60 57 56 55 55 16 16 22 Greatest Support 60 | 20 24 24 24 40 40 40 60 36 48 48 35 35 16 16 Greatest Overweight (x) 4 | 1 1 1 2 4 1 1 4 1 1 1 1 3 . 2 Average Overweight (x) . | . . 1 2 1 1 1 . 1 1 1 . . . 1 Largest Inventory Capacity 20 | 8 20 20 20 20 20 20 20 20 20 20 20 8 5 5 Average Capacity 18 | 7 15 20 20 20 20 20 20 20 20 20 12 5 5 5 Most Carried 20 | 7 12 16 20 20 20 19 20 20 20 20 18 8 4 5 Average Carried 16 | 4 8 15 18 19 19 19 19 19 19 19 11 4 4 4 Final Capacity 20 | 8 20 20 20 20 20 20 20 20 20 20 8 5 5 5 Final Carried 20 | 6 12 16 19 20 19 19 20 20 20 19 8 4 4 5 Class Distribution -------------------- 65% | Gunner 19% | Mutant 8% | Scavenger-Mutant 3% | Scavenger-Gunner Dominant Class ---------------- Mutant | -10/Materials Mutant | -10/Mines Gunner | -9/Materials Gunner | -9/Mines Gunner | -9/Exiles Gunner | -8/Mines Gunner | -8/Materials Gunner | -8/Garrison Mutant | -8/Materials Scavenger-Gunner | -8/Garrison Bothacker-Scout | -7/Factory Scavenger-Mutant | -7/Garrison Scavenger-Mutant | -7/Factory Scavenger-Mutant | -7/Storage Resources | -11 -10 -10 -9 -9 -9 -8 -8 -8 -8 -8 -7 -7 -7 -7 ----------- Run | Scr Mat Min Mat Min Exi Min Mat Gar Mat Gar Fac Gar Fac Sto Matter Collected 2969 | 171 169 272 572 180 . 132 474 214 210 115 243 147 . 70 Remotely . | . . . . . . . . . . . . . . . Salvage Created 3675 | . 131 317 359 137 . 217 754 348 172 135 433 294 . 378 Parts 214 | . 7 19 25 9 . 19 45 26 10 7 19 11 . 17 Haulers Intercepted 7 | . . . 2 . . . 3 . . . . . . 2 Recyclers Shooed 7 | . 2 1 . . . . . . 2 . 2 . . . Parts Field Recycled . | . . . . . . . . . . . . . . . Retrieved Matter . | . . . . . . . . . . . . . . . Parts Self-Destructed . | . . . . . . . . . . . . . . . Prevented . | . . . . . . . . . . . . . . . Kills | -11 -10 -10 -9 -9 -9 -8 -8 -8 -8 -8 -7 -7 -7 -7 ------- Run | Scr Mat Min Mat Min Exi Min Mat Gar Mat Gar Fac Gar Fac Sto Combat Hostiles Destroyed 73 | . . 9 6 5 . 9 7 9 6 4 5 8 . 5 Guns 54 | . . 5 6 5 . 9 7 9 3 3 5 2 . . Cannons 2 | . . . . . . . . . . . . 2 . . AOE 15 | . . 4 . . . . . . 3 1 . 3 . 4 Classes Destroyed 15 | . 3 4 5 . . . 2 . 1 . . . . . Worker 5 | . 1 1 . 1 . . 2 . . . . . . . Builder 4 | . . . 2 . . 1 1 . . . . . . . Tunneler 4 | . . 1 . 1 . . 1 . . . 1 . . . Hauler 7 | . . . 2 . . . 3 . . . . . . 2 Recycler 7 | . 1 1 . . . . 3 . . . 2 . . . Operator 3 | . 1 . 1 . . . . . . . 1 . . . Watcher 2 | . . . 1 . . . 1 . . . . . . . Swarmer 21 | . . 2 . 4 . 6 . 2 4 . . 3 . . Grunt 33 | . . 6 1 . . 3 3 3 1 3 5 4 . 4 Brawler 1 | . . . . . . . 1 . . . . . . . Duelist 1 | . . . 1 . . . . . . . . . . . Sentry 12 | . . . 4 1 . . 2 3 . 1 . 1 . . Demolisher 1 | . . 1 . . . . . . . . . . . . Hunter 2 | . . . . . . . 1 1 . . . . . . Heavy 2 | . . . . . . . . . 1 . . . . 1 Best Kill Streak 6 | . 2 2 3 4 . 4 4 5 6 3 4 5 . 3 Combat Bots Only 6 | . . 2 1 4 . 3 4 5 6 3 3 5 . 2 Max Kills in Single Turn 3 | . 1 2 1 2 . 3 2 2 2 1 1 2 . 2 Gunslinging 1 | . . . . 1 . 1 . 1 . . . . . . Exploded 2 | . . 2 . . . . . . 2 1 . 2 . 2 Melee . | . . . . . . . . . . . . . . . Uniques/NPCs Destroyed . | . . . . . . . . . . . . . . . Combat | -11 -10 -10 -9 -9 -9 -8 -8 -8 -8 -8 -7 -7 -7 -7 -------- Run | Scr Mat Min Mat Min Exi Min Mat Gar Mat Gar Fac Gar Fac Sto Damage Taken 4172 | . . 164 512 56 . 194 671 302 268 245 210 1214 . 336 Core 910 | . . 43 45 9 . 34 166 30 18 18 21 481 . 45 Absorbed by Shields . | . . . . . . . . . . . . . . . Core Remaining (%) 75 | 100 . 82 . . . 73 . . . 46 . . . . Volleys Fired 241 | 1 15 24 29 6 . 11 43 21 19 12 18 26 . 16 Largest 3 | 1 2 2 3 3 . 3 3 3 2 3 2 2 . 1 Hottest 134 | 40 60 60 75 75 . 75 75 71 43 66 46 134 . 36 Shots Fired 528 | 1 30 42 87 18 . 33 119 60 32 22 36 32 . 16 Gun 481 | 1 30 36 87 18 . 33 114 60 26 18 36 22 . . Cannon 7 | . . . . . . . . . . . . 7 . . Launcher 40 | . . 6 . . . . 5 . 6 4 . 3 . 16 Special . | . . . . . . . . . . . . . . . Kinetic 428 | . 15 18 87 18 . 33 114 60 26 18 36 3 . . Thermal 60 | 1 15 18 . . . . . . . . . 26 . . Explosive 13 | . . 6 . . . . . . . 4 . 3 . . Electromagnetic 27 | . . . . . . . 5 . 6 . . . . 16 Robot Hit Streak 29 | 1 10 7 7 8 . 7 23 29 14 20 28 18 . 19 Robot Miss Streak 9 | . 3 3 9 3 . 5 4 1 2 . 1 2 . 2 Penetration Max . | . . . . . . . . . . . . . . . Secondary Targets 10 | . . 1 1 1 . 4 1 2 . . . . . . Max Gunslinging Chain 1 | . . 1 1 1 . 1 1 1 . . . . . . Shots Hit Robots 378 | 1 17 27 58 13 . 23 90 45 24 13 29 29 . 9 Core Hits 192 | . 6 18 23 8 . 17 38 18 12 13 17 13 . 9 Critical Kills 1 | . . . . . . . . . . . 1 . . . Critical Parts Destroyed 1 | . . . . . . . 1 . . . . . . . Critical Strikes 5 | . . . . . . . 1 . . . 1 3 . . Burn 3 | . . . . . . . . . . . . 3 . . Destroy 2 | . . . . . . . 1 . . . 1 . . . Melee Attacks 4 | . . . . . . . . . . . 1 3 . . Impact . | . . . . . . . . . . . . . . . Slashing . | . . . . . . . . . . . . . . . Piercing . | . . . . . . . . . . . . . . . Sneak Attacks 1 | . . . . . . . . . . . 1 . . . Combat Hostiles . | . . . . . . . . . . . . . . . Follow-up Attacks . | . . . . . . . . . . . . . . . Damage Inflicted 8272 | 10 206 633 1012 260 . 443 1500 673 525 605 410 825 . 1170 Guns 5591 | 10 206 297 1012 260 . 443 1485 673 312 183 410 300 . . Cannons 160 | . . . . . . . . . . . . 160 . . Explosions 2521 | . . 336 . . . . 15 . 213 422 . 365 . 1170 Melee . | . . . . . . . . . . . . . . . Ramming . | . . . . . . . . . . . . . . . Kinetic 5083 | . 118 161 1012 260 . 443 1485 673 312 183 410 26 . . Thermal 1101 | 10 88 136 . . . . . . 31 . . 434 . 402 Explosive 1123 | . . 336 . . . . . . . 422 . 365 . . Electromagnetic 965 | . . . . . . . 15 . 182 . . . . 768 Impact . | . . . . . . . . . . . . . . . Slashing . | . . . . . . . . . . . . . . . Piercing . | . . . . . . . . . . . . . . . Highest Corruption 1 | . . . . . . . . . . . . . . 1 Average Corruption 1 | . . . . . . . . . . . . . . 1 Corruption Purged . | . . . . . . . . . . . . . . . Effects 1 | . . . . . . . . . . . . . . 1 Message Errors 1 | . . . . . . . . . . . . . . 1 Overload Shots . | . . . . . . . . . . . . . . . Overflow Damage 53 | . . 2 . . . . . . . . . 45 . 6 Projectiles . | . . . . . . . . . . . . . . . Explosions 53 | . . 2 . . . . . . . . . 45 . 6 Melee . | . . . . . . . . . . . . . . . Knockbacks . | . . . . . . . . . . . . . . . Impact . | . . . . . . . . . . . . . . . Kinetic . | . . . . . . . . . . . . . . . Secondary . | . . . . . . . . . . . . . . . Self-Inflicted Damage 205 | . . . . . . . . . 65 . . 35 . 105 Shots 12 | . . . . . . . . . 3 . . 1 . 8 Rammed . | . . . . . . . . . . . . . . . Targets Rammed . | . . . . . . . . . . . . . . . Kicked . | . . . . . . . . . . . . . . . Crushed . | . . . . . . . . . . . . . . . Highest Temperature 411 | . . 27 33 . . 81 411 22 21 10 8 73 . . Average Temperature 30 | . . 12 13 . . 40 88 7 10 6 8 27 . . Received Heat Transfer 1680 | . . 96 117 . . 99 270 144 153 126 90 558 . 27 Siege Activations . | . . . . . . . . . . . . . . . Robots Corrupted 1 | . . . . . . . . . . . . . . 1 Combat Hostiles 1 | . . . . . . . . . . . . . . 1 Parts Fried 2 | . . . . . . . . . . . . . . 2 Impact Corruptions . | . . . . . . . . . . . . . . . Robots Melted 1 | . . . . . . . . . . . . 1 . . Combat Hostiles 1 | . . . . . . . . . . . . 1 . . Parts Melted 8 | . 1 . 2 . . . . . . . . 5 . . Heat Transferred 1853 | 25 200 300 . . . . . . 50 . . 916 . 362 Parts Sabotaged . | . . . . . . . . . . . . . . . Parts Stolen . | . . . . . . . . . . . . . . . Parts Stripped . | . . . . . . . . . . . . . . . Power Chain Reactions 7 | . . . . . . . 1 . 2 . . . . 4 Missiles Intercepted . | . . . . . . . . . . . . . . . Alert | -11 -10 -10 -9 -9 -9 -8 -8 -8 -8 -8 -7 -7 -7 -7 ------- Run | Scr Mat Min Mat Min Exi Min Mat Gar Mat Gar Fac Gar Fac Sto Peak Influence 719 | . 92 292 204 133 . 243 528 719 683 623 466 444 233 648 Initial 443 | . . 35 14 88 . . 33 200 350 443 326 238 233 105 Average 219 | . 46 164 109 41 . 109 313 556 543 504 345 385 233 300 Maximum Alert Level 3 | . . 1 1 . . 1 2 3 2 2 2 2 1 2 Low Security (%) 56 | 100 100 71 92 100 . 91 19 . . . . 1 . 42 Level 1 23 | . . 28 7 . . 8 66 26 21 . 72 24 100 17 Level 2 19 | . . . . . . . 13 69 78 100 27 73 . 40 Level 3 . | . . . . . . . . 4 . . . . . . Level 4 . | . . . . . . . . . . . . . . . Level 5 . | . . . . . . . . . . . . . . . High Security . | . . . . . . . . . . . . . . . Max Security . | . . . . . . . . . . . . . . . Squads Dispatched 14 | . 1 . 1 . . . 1 . 4 . 2 . . 5 Investigation 1 | . . . . . . . . . . . 1 . . . Extermination . | . . . . . . . . . . . . . . . Reinforcement 8 | . 1 . 1 . . . 1 . 2 . . . . 3 Assault . | . . . . . . . . . . . . . . . Garrison 5 | . . . . . . . . . 2 . 1 . . 2 Intercept . | . . . . . . . . . . . . . . . Construction Impeded . | . . . . . . . . . . . . . . . Haulers Reinforced 1 | . . . . . . . . . . . . . . 1 Active Scanning Responses . | . . . . . . . . . . . . . . . Cargo Convoy Interrupts . | . . . . . . . . . . . . . . . Stealth | -11 -10 -10 -9 -9 -9 -8 -8 -8 -8 -8 -7 -7 -7 -7 --------- Run | Scr Mat Min Mat Min Exi Min Mat Gar Mat Gar Fac Gar Fac Sto Distress Signals 8 | . . . 2 . . . 3 . 1 . . . . 2 Communications Jammed . | . . . . . . . . . . . . . . . Distress Signals . | . . . . . . . . . . . . . . . Times Spotted 154 | . 4 10 19 5 . 10 20 16 12 10 4 23 . 21 Peak Tracking Total 12 | . 2 3 6 3 . 4 5 5 6 6 2 12 . 6 Tactical Retreats 2 | . . . . . . 1 . . . . . . . 1 Traps | -11 -10 -10 -9 -9 -9 -8 -8 -8 -8 -8 -7 -7 -7 -7 ------- Run | Scr Mat Min Mat Min Exi Min Mat Gar Mat Gar Fac Gar Fac Sto Traps Triggered 14 | . . . . . . . 2 3 . 6 . 3 . . Indirectly 2 | . . . . . . . 2 . . . . . . . Trap Hack Attempts . | . . . . . . . . . . . . . . . Triggered . | . . . . . . . . . . . . . . . Disarmed . | . . . . . . . . . . . . . . . Reprogrammed . | . . . . . . . . . . . . . . . Reused 2 | . . 2 . . . . . . . . . . . . Traps Extracted . | . . . . . . . . . . . . . . . Installed 2 | . . 2 . . . . . . . . . . . . Triggered 2 | . . 2 . . . . . . . . . . . . Machines | -11 -10 -10 -9 -9 -9 -8 -8 -8 -8 -8 -7 -7 -7 -7 ---------- Run | Scr Mat Min Mat Min Exi Min Mat Gar Mat Gar Fac Gar Fac Sto Machines Disabled 9 | . . 1 1 1 . . . 1 . 1 . . . 4 Max in Single Turn 1 | . . . . 1 . . . 1 . 1 . . . 1 Garrison Relay 2 | . . . . . . . . 1 . 1 . . . . Machines Sabotaged . | . . . . . . . . . . . . . . . Garrisons Compromised . | . . . . . . . . . . . . . . . Overloaded Fab Kills . | . . . . . . . . . . . . . . . Fab Network Shutdowns . | . . . . . . . . . . . . . . . Hacking | -11 -10 -10 -9 -9 -9 -8 -8 -8 -8 -8 -7 -7 -7 -7 --------- Run | Scr Mat Min Mat Min Exi Min Mat Gar Mat Gar Fac Gar Fac Sto Machines Accessed 19 | . 1 1 1 . 3 . 6 . 1 . 5 . . 1 Terminals 10 | . 1 1 1 . . . 2 . . . 4 . . 1 Fabricators . | . . . . . . . . . . . . . . . Repair Stations . | . . . . . . . . . . . . . . . Recycling Units 1 | . . . . . . . 1 . . . . . . . Scanalyzers 2 | . . . . . . . 2 . . . . . . . Garrison Access 3 | . . . . . . . 1 . 1 . 1 . . . Total Hacks 43 | . 4 2 4 . 3 . 17 . 1 . 10 . . 2 Successful 21 | . 1 1 1 . 3 . 10 . 1 . 3 . . 1 Failed 22 | . 3 1 3 . . . 7 . . . 7 . . 1 Catastrophic 3 | . . . . . . . 1 . . . 2 . . . Database Lockouts . | . . . . . . . . . . . . . . . Manual 10 | . . 2 . . . . 5 . . . 3 . . . Terminals 26 | . 4 2 4 . . . 5 . . . 9 . . 2 Fabricators . | . . . . . . . . . . . . . . . Repair Stations . | . . . . . . . . . . . . . . . Recycling Units 2 | . . . . . . . 2 . . . . . . . Scanalyzers 9 | . . . . . . . 9 . . . . . . . Garrison Access 3 | . . . . . . . 1 . 1 . 1 . . . Terminal Hacks 11 | . 1 1 1 . 3 . 2 . . . 2 . . 1 Record 3 | . . . . . 3 . . . . . . . . . Part Schematic 1 | . . . . . . . . . . . 1 . . . Prototype ID Bank 5 | . 1 1 1 . . . 1 . . . 1 . . . Open Door 1 | . . . . . . . . . . . . . . 1 Scanalyzer Index 1 | . . . . . . . 1 . . . . . . . Fabricator Hacks . | . . . . . . . . . . . . . . . Repair Station Hacks . | . . . . . . . . . . . . . . . Recycling Unit Hacks 1 | . . . . . . . 1 . . . . . . . Retrieve Components 1 | . . . . . . . 1 . . . . . . . Scanalyzer 5 | . . . . . . . 5 . . . . . . . Insert Component 2 | . . . . . . . 2 . . . . . . . Analyze 3 | . . . . . . . 3 . . . . . . . Garrison Access Hacks 3 | . . . . . . . 1 . 1 . 1 . . . Unlock Access 3 | . . . . . . . 1 . 1 . 1 . . . Unauthorized Hacks 1 | . . . . . . . 1 . . . . . . . Terminals . | . . . . . . . . . . . . . . . Fabricators . | . . . . . . . . . . . . . . . Repair Stations . | . . . . . . . . . . . . . . . Recycling Units 1 | . . . . . . . 1 . . . . . . . Reject 1 | . . . . . . . 1 . . . . . . . Scanalyzers . | . . . . . . . . . . . . . . . Garrison Access . | . . . . . . . . . . . . . . . Data Cores Recovered 2 | . . . 1 . . . . . . . 1 . . . Used 1 | . . . . . . . . . . . 1 . . . Hacking Detections 14 | . 1 1 1 . . . 5 . . . 5 . . 1 Full Trace Events 3 | . . . . . . . 2 . . . 1 . . . Feedback Events . | . . . . . . . . . . . . . . . Feedback Blocked . | . . . . . . . . . . . . . . . Robot Schematics Acquired . | . . . . . . . . . . . . . . . Robots Built . | . . . . . . . . . . . . . . . Matter . | . . . . . . . . . . . . . . . Time . | . . . . . . . . . . . . . . . Total Robot Build Rating . | . . . . . . . . . . . . . . . Part Schematics Acquired 1 | . . . . . . . . . . . 1 . . . Parts Built . | . . . . . . . . . . . . . . . Matter . | . . . . . . . . . . . . . . . Time . | . . . . . . . . . . . . . . . Total Part Build Rating . | . . . . . . . . . . . . . . . Parts Repaired . | . . . . . . . . . . . . . . . Time . | . . . . . . . . . . . . . . . Parts Recycled . | . . . . . . . . . . . . . . . Recycled Matter . | . . . . . . . . . . . . . . . Retrieved Matter . | . . . . . . . . . . . . . . . Retrieved Components 9 | . . . . . . . 9 . . . . . . . Parts Scanalyzed 1 | . . . . . . . 1 . . . . . . . Part Schematics Acquired . | . . . . . . . . . . . . . . . Parts Damaged . | . . . . . . . . . . . . . . . Bothacking | -11 -10 -10 -9 -9 -9 -8 -8 -8 -8 -8 -7 -7 -7 -7 ------------ Run | Scr Mat Min Mat Min Exi Min Mat Gar Mat Gar Fac Gar Fac Sto Used RIF Installer 3 | . . . . . . . . 1 . 1 . 1 . . Hotswap 1 | . . . . . . . . . . . . 1 . . Threat Obfuscator 1 | . . . . . . . . . . 1 . . . . Robots Hacked 3 | . . . . . . . . . . . . 3 . . Non-combat . | . . . . . . . . . . . . . . . Combat 3 | . . . . . . . . . . . . 3 . . Robot Hacks Applied 3 | . . . . . . . . . . . . 3 . . spike_heat 1 | . . . . . . . . . . . . 1 . . streamctrl_high 1 | . . . . . . . . . . . . 1 . . formatsys_high 1 | . . . . . . . . . . . . 1 . . Relay Couplers Released 10 | . . . . . . . . 5 . 5 . . . . Machine Destruction 10 | . . . . . . . . 5 . 5 . . . . Attached 1 | . . . . . . . . . . . . 1 . . Robots Rewired . | . . . . . . . . . . . . . . . Allies Hacked . | . . . . . . . . . . . . . . . Hacks Repelled . | . . . . . . . . . . . . . . . Allies | -11 -10 -10 -9 -9 -9 -8 -8 -8 -8 -8 -7 -7 -7 -7 -------- Run | Scr Mat Min Mat Min Exi Min Mat Gar Mat Gar Fac Gar Fac Sto Total Allies 6 | . 1 3 . . . . . . . . . 2 . . Largest Group 4 | . 1 4 4 1 1 1 1 1 1 1 1 2 1 1 Highest-Rated Group 108 | . 59 99 108 68 68 68 72 72 72 72 78 94 77 88 Highest-Rated Ally 88 | . 59 59 68 68 68 68 72 72 72 72 78 79 77 88 Total Orders . | . . . . . . . . . . . . . . . Ally Attacks 193 | . 3 7 41 . . 8 28 20 20 8 6 34 . 18 Total Damage 7493 | . 64 67 747 . . 175 956 567 767 343 383 1161 . 2263 Kills 88 | . 2 1 8 . . 5 12 8 7 4 6 11 . 24 Allies Corrupted . | . . . . . . . . . . . . . . . Allies Melted 1 | . . . . . . . . . . . . 1 . . Intel | -11 -10 -10 -9 -9 -9 -8 -8 -8 -8 -8 -7 -7 -7 -7 ------- Run | Scr Mat Min Mat Min Exi Min Mat Gar Mat Gar Fac Gar Fac Sto Robot Analysis Total . | . . . . . . . . . . . . . . . Derelict Logs Recovered 2 | . . 1 . 1 . . . . . . . . . . Drone Launches . | . . . . . . . . . . . . . . . Drone Recoveries . | . . . . . . . . . . . . . . . Exploration | -11 -10 -10 -9 -9 -9 -8 -8 -8 -8 -8 -7 -7 -7 -7 ------------- Run | Scr Mat Min Mat Min Exi Min Mat Gar Mat Gar Fac Gar Fac Sto Turns Passed 9775 | 55 247 926 908 1723 1265 1073 996 573 205 307 625 524 96 252 Spaces Moved 5175 | 47 145 754 598 663 487 398 461 240 72 123 605 395 89 98 Core 75 | 6 . . . . . . . . . . . 69 . . Treads 1771 | . . . . 646 487 398 240 . . . . . . . Legs 619 | . . . . . . . 184 240 72 123 . . . . Wheels 1592 | 41 145 754 598 17 . . 37 . . . . . . . Hover 1118 | . . . . . . . . . . . 605 326 89 98 Flight . | . . . . . . . . . . . . . . . Fastest Speed 48 | 50 80 105 120 120 260 260 150 190 190 196 48 48 76 76 Average Speed 159 | 81 95 105 120 256 260 260 173 190 191 196 65 75 76 157 Slowest Speed 290 | 100 105 105 120 260 260 260 290 190 196 196 108 200 76 200 Overloaded Moves . | . . . . . . . . . . . . . . . Propulsion Burnouts . | . . . . . . . . . . . . . . . Robots Hopped . | . . . . . . . . . . . . . . . Cave-ins Triggered . | . . . . . . . . . . . . . . . Exploration Rate (%) 46 | 3 20 97 51 99 91 97 46 47 12 35 13 62 5 25 Regions Visited 14 Branch Regions 5 Pre-discovered Areas 1 | . . 1 . . . . . . . . . . . . Known Exits Taken 6 | . . . 1 . . 1 1 . 1 . 1 . 1 . Unknown Exits Taken 5 | 1 1 1 . 1 1 . . . . . . . . . Scrap Searched 1 | . . 1 . . . . . . . . . . . . Spaces Dug 15 | . . 15 . . . . . . . . . . . . Terrain Destroyed 86 | . . 27 . . . . 3 . 4 30 . 5 . 17 Melee . | . . . . . . . . . . . . . . . Projectile . | . . . . . . . . . . . . . . . AOE 86 | . . 27 . . . . 3 . 4 30 . 5 . 17 Terrain Rammed . | . . . . . . . . . . . . . . . Walls Destroyed . | . . . . . . . . . . . . . . . Machines Disabled . | . . . . . . . . . . . . . . . Actions | -11 -10 -10 -9 -9 -9 -8 -8 -8 -8 -8 -7 -7 -7 -7 --------- Run | Scr Mat Min Mat Min Exi Min Mat Gar Mat Gar Fac Gar Fac Sto Total 6260 | 60 225 844 725 673 487 413 569 312 109 168 797 581 117 180 Wait 590 | . 45 51 77 . . 5 29 26 5 9 149 102 29 63 Move 5163 | 46 144 753 597 662 486 397 461 239 71 122 605 394 88 98 Hop . | . . . . . . . . . . . . . . . Pick Up 57 | 7 10 6 9 1 . . 8 5 3 1 4 1 . 2 Fast Attach 31 | 5 1 . 2 2 . . 5 . 1 1 3 11 . . Attach 21 | 1 . . 2 . . . 5 1 1 1 6 3 . 1 Detach 5 | . . . . . . . 2 . . . 3 . . . Swap 27 | . 3 6 2 . . . 5 1 4 1 4 1 . . Drop 44 | . 7 2 7 2 1 . 11 4 5 1 4 . . . Fire 241 | 1 15 24 29 6 . 11 43 21 19 12 18 26 . 16 Melee 4 | . . . . . . . . . . . 1 3 . . Ram . | . . . . . . . . . . . . . . . Kick . | . . . . . . . . . . . . . . . Crush . | . . . . . . . . . . . . . . . Escape Stasis 74 | . . . . . . . . 15 . 20 . 39 . . Rewire 1 | . . . . . . . . . . . . 1 . . Trap 2 | . . 2 . . . . . . . . . . . . Miscellaneous . | . . . . . . . . . . . . . . . Route ------- -11/Scrapyard -10/Materials -10/Mines (discovered 2 exits: *Mat x2) -9/Materials (discovered 4 exits: *Mat x3 / *Min) -9/Mines (discovered 3 exits: *Mat x2 / *Exi) -9/Exiles -8/Mines (discovered 2 exits: *Mat x2) -8/Materials (discovered 2 exits: *Fac / Gar) -8/Garrison -8/Materials -8/Garrison -7/Factory -7/Garrison (discovered 3 exits: *Fac x3) -7/Factory -7/Storage History --------- Turn | Location | Event 26 | -11/Scrapyard | Discovered new exit (range 15) 56 | -11/Scrapyard | Entered Materials 260 | -10/Materials | Discovered new exit (range 9) 303 | -10/Materials | Entered Mines 303 | -10/Mines | Accompanied by 1 ally 327 | -10/Mines | Met a Derelict bent on vengeance 328 | -10/Mines | Build established: Mutant 396 | -10/Mines | Assembled infested the area 401 | -10/Mines | Assisted by a Guerilla fighting off Assembled 462 | -10/Mines | Discovered new exit (range 13) 475 | -10/Mines | Found a hidden stash of uninstalled traps 875 | -10/Mines | Assisted by bots powering up and referring to "LRC-V3" 885 | -10/Mines | Learned 2 Materials zone layouts 1147 | -10/Mines | Discovered new exit (range 12) 1153 | -10/Mines | Learned location of Storage (-7) 1229 | -10/Mines | Entered Materials 1229 | -9/Materials | Accompanied by 4 allies 1229 | -9/Materials | Evolved 2 slots: Utility x1, Weapon x1 1230 | -9/Materials | Identified exit to Mines 1230 | -9/Materials | Identified exit to Materials 1506 | -9/Materials | Discovered exit to Materials (range 5) 1553 | -9/Materials | Build established: Gunner 1756 | -9/Materials | Discovered exit to Materials (range 15) 2137 | -9/Materials | Entered Mines 2137 | -9/Mines | Accompanied by 1 ally 2143 | -9/Mines | Joined a pair of Derelicts in attacking an 0b10 outpost 2233 | -9/Mines | Found a damaged Exp. Sensor Array with a note attached 2262 | -9/Mines | Found Prototype Device 2538 | -9/Mines | Deemed a non-threat by the Exiles lab entrance 2666 | -9/Mines | A weapon hastily lodged in a ceiling crevice suddenly fell to the ground 3093 | -9/Mines | Discovered exit to Materials (range 12) 3233 | -9/Mines | Discovered exit to Materials (range 9) 3847 | -9/Mines | Discovered new exit (range 5) 3860 | -9/Mines | Entered Exiles 3860 | -9/Exiles | Found Exiles lab abandoned 3860 | -9/Exiles | Accompanied by 1 ally 5093 | -9/Exiles | Discovered new exit (range 14) 5125 | -9/Exiles | Entered Mines 5125 | -8/Mines | Accompanied by 1 ally 5449 | -8/Mines | Discovered exit to Materials (range 10) 5938 | -8/Mines | Discovered exit to Materials (range 10) 6198 | -8/Mines | Entered Materials 6198 | -8/Materials | Accompanied by 1 ally 6198 | -8/Materials | Evolved 2 slots: Propulsion x1, Utility x1 6199 | -8/Materials | Identified exit to Factory 6241 | -8/Materials | Identified Exp. Sensor Array 7194 | -8/Materials | Identified exit to Garrison 7194 | -8/Materials | Entered Garrison 7194 | -8/Garrison | Accompanied by 1 ally 7204 | -8/Garrison | Installed Relay Interface Framework 7230 | -8/Garrison | Triggered checkpoint 7365 | -8/Garrison | Triggered checkpoint 7526 | -8/Garrison | Triggered checkpoint 7532 | -8/Garrison | Garrison Relay disabled 7733 | -8/Garrison | Discovered new exit (range 15) 7765 | -8/Garrison | Identified exit to Materials 7767 | -8/Garrison | Entered Materials 7767 | -8/Materials | Accompanied by 1 ally 7804 | -8/Materials | Garrison activated, responded to threat 7964 | -8/Materials | Identified exit to Garrison 7972 | -8/Materials | Entered Garrison 7972 | -8/Garrison | Accompanied by 1 ally 7982 | -8/Garrison | Expanded RIF knowledge: Threat Obfuscation 8008 | -8/Garrison | Triggered checkpoint 8059 | -8/Garrison | Garrison Relay disabled 8148 | -8/Garrison | Triggered checkpoint 8178 | -8/Garrison | Build established: Scavenger-Gunner 8208 | -8/Garrison | Spotted B-75 Beast 8211 | -8/Garrison | Triggered checkpoint 8222 | -8/Garrison | Allies destroyed B-75 Beast 8229 | -8/Garrison | Core integrity fell below 50% 8231 | -8/Garrison | Discovered exit to Factory (range 14) 8279 | -8/Garrison | Entered Factory 8279 | -7/Factory | Accompanied by 1 ally 8279 | -7/Factory | Evolved 2 slots: Propulsion x1, Utility x1 8895 | -7/Factory | Garrison activated, responded to threat 8902 | -7/Factory | Identified exit to Garrison 8904 | -7/Factory | Entered Garrison 8904 | -7/Garrison | Accompanied by 1 ally 8924 | -7/Garrison | Triggered checkpoint 8940 | -7/Garrison | Triggered checkpoint 8948 | -7/Garrison | Triggered checkpoint 8962 | -7/Garrison | Core integrity fell below 50% 9004 | -7/Garrison | Lost 14 parts (1p4n2u7w) 9143 | -7/Garrison | Discovered new exit (range 15) 9227 | -7/Garrison | Discovered new exit (range 15) 9285 | -7/Garrison | Identified exit to Factory 9303 | -7/Garrison | Core integrity fell below 20% 9346 | -7/Garrison | Build established: Scavenger-Mutant 9368 | -7/Garrison | Discovered exit to Factory (range 10) 9381 | -7/Garrison | Expanded RIF knowledge: Hotswap 9428 | -7/Garrison | Entered Factory 9428 | -7/Factory | Accompanied by 1 ally 9478 | -7/Factory | Discovered new exit (range 8) 9484 | -7/Factory | Identified exit to Storage 9524 | -7/Factory | Entered Storage 9524 | -7/Storage | Accompanied by 1 ally 9661 | -7/Storage | Garrison activated, responded to threat 9773 | -7/Storage | Garrison activated, responded to threat 9776 | -7/Storage | Destroyed by Y-54 Guardian with Gatling Laser Last Messages --------------- 09746_ H-55 Commando destroyed. 09746_ K-01 Serf collects debris. 09752_ Player 2 removes Adv. EMP Blaster. 09752_ Player 2 attaches Corrupted Prototype Ballistic Cannon. Player 2: "Need targets to test this new Corrupted Prototype Ballistic Cannon." 09755_ Acquired 15 matter. 09755_ Player 2 removes Corrupted Gauss Rifle. 09755_ Player 2 attaches Prototype Ballistic Cannon. 09756_ K-01 Serf collects debris. 09761_ Player 2 drops Adv. EMP Blaster. 09761_ Player 2 removes Corrupted Flak Gun. 09761_ Player 2 attaches Corrupted Prototype Ballistic Cannon. 09769_ ,KLFSWXKDZ Q3L|FKKKKY%Y 09771_ A-02 Transporter sends out distress signal. 09773_ G-47 Trooper destroyed. 09773_ ALERT: Activating Garrison Access S001. 09775_ Chain reaction triggered in Corrupted Lgt. Nuclear Core. 09775_ Chain reaction triggered in Corrupted Prototype Power Core. 09776_ G-47 Trooper system terminally corrupted. Map ----- +----------------------------------------------------+ | ?????????????????????????????????????????????????? | | ?????????????????????????????????????????????????? | | ?????????????????????????????????????????????????? | | ?????????????????????????????????????????????????? | | ?????????????????????????????????? ????????????? | | ?????????????????????????????????? ????????????? | | ?????????????????????????????????? ????????????? | | ?????????????????????????????????# #???????????? | | ?????????????????????????????????# #???????????? | | ?????????????????????????????????# +???????????? | | ?????????????????????????????????# #???????????? | | ?????????????????????????????????# #???????????? | | ?????????????????????????????????# #???????????? | | ?????????????????????????????????# #???????????? | | ?????????????????????????????????# #???????????? | | ?????????????????????????????????# #??########?? | | ?????????????????????????????????# #?? #?? | | ?????????????????????????????????# ##""" ##? | | ??????????????????????????????? ## ##""" #? | | ???????????????????????????????? + ##""" #?? | | ???????????? ????????????????????# ## #?# | | ??????????? ?????????????????# # #?# | | ??????????? [ !??????????????# ! # % #?# | | ??????????? !% ; #######???###[[== #?# | | ??????????????#![Y= #??##=!%=%! #?# | | ??????????????# %%* @ #?##==%[%=[ # # #### | | ???????????????# """ ###== =[!=% == = | | ???????????????# #??????" %!% %] % ! ! | | ?????????????????????????" #### == [ =! ] | | ?????????????????????????" #? ] ! # ###### | | ?????????????????????????" ### ### !== ## | | ????????????????????????? #?########?# =%= ## | | ????????????????????????? #??????????#" !! ##[[ | | ?????????????????????????###??????????#" = ##[[ | | ??????????????????????????????????????# =%## | | ??????????????????????????????????????#" ## | | ??????????????????????????????????????#" ## | | ??????????????????????????????????????? ## | | ??????????????????????????????????????? #### | | ??????????????????????????????????????? ??? | | ??????????????????????????????????????? #??? | | ???????????????????????????????????????########??? | | ?????????????????????????????????????????????????? | | ?????????????????????????????????????????????????? | | ?????????????????????????????????????????????????? | | ?????????????????????????????????????????????????? | | ?????????????????????????????????????????????????? | | ?????????????????????????????????????????????????? | | ?????????????????????????????????????????????????? | | | +----------------------------------------------------+ Best States ------------- Heat Dissipation 48 Energy Generation 14 Energy Capacity 280 Matter Stores 300 Matter Capacity 300 Sight Range 16 Robot Scan Range 20 Terrain Scan Density 10 Armor Coverage 150 Evasion (%) 55 Targeting Accuracy 12 Recoil Reduction 3 Offensive Hacking 10 Relay Coupler Types 31 Relay Coupler Value 1 Item Schematics ----------------- Hacking Suite | -7/Factory | Hacked Robot Schematics ------------------ None Fabricated ------------ Nothing Alien Tech Used ----------------- None Achievements -------------- None Challenges ------------ None Player 2 | -11 -10 -10 -9 -9 -9 -8 -8 -8 -8 -8 -7 -7 -7 -7 ---------- Run | Scr Mat Min Mat Min Exi Min Mat Gar Mat Gar Fac Gar Fac Sto Slots Evolved 6 | . . 2 . . . 2 . . . 2 . . . . Power . | . . . . . . . . . . . . . . . Propulsion 4 | . . 2 . . . 2 . . . . . . . . Utility 1 | . . . . . . . . . . 1 . . . . Weapon 1 | . . . . . . . . . . 1 . . . . Parts Attached 78 | . 8 . 9 . . . 11 1 6 9 2 12 1 19 Parts Lost 15 | . . . . . . . . . 3 1 . 1 . 10 Damage Taken 3164 | . . 26 27 . . 161 84 287 744 138 32 541 . 1124 Core 237 | . . . . . . 19 . 32 . 32 . 69 . 85 Player 2/Cogmind (%) 20 | . . . . . . 35 . 51 . 64 . 12 . 65 Absorbed by Shields . | . . . . . . . . . . . . . . . Damage Inflicted 7157 | . 64 67 487 . . 175 956 567 767 343 383 1085 . 2263 Player 2/Cogmind (%) 46 | . 23 9 32 . . 28 38 45 59 36 48 56 . 65 Combat Hostiles Destroyed 63 | . . 1 4 . . 5 8 8 6 4 4 11 . 12 Player 2/Cogmind (%) 46 | . . 10 40 . . 35 53 47 50 50 44 57 . 70 Game ------ Seed MasterArcChip Manual? 0 Play Time 01:09:03 Cumulative 1088.2 hours Start 2021.08.24 @ 04:48:41 End 2021.08.24 @ 05:55:47 Sessions 2 Manual Loads 0 Difficulty Rogue Special Mode AFD2020/Player2 Game No. 682 Rogue 682 Adventurer 0 Explorer 0 Win Type - Total 18 Types 10/1/4/3/0/0/0/0/0 Lore% 88 Gallery% 90 Achievement% 81 Wizard Run 0 Options --------- ASCII 0 Keyboard 0 Movement Mouse Keybinds 0 Fullscreen 1 Font 24/Smallcaps Map View 76x50 Tactical HUD 1 Map Filters NONE Filters NONE Steam 1 RUN: b477e559-fb1c-4768-9152-e0668869c231